fUST/lending_fUST_20251014
["ID","MTS","AMOUNT","RATE_DAILY","PERIOD"]
[391197822,1760415059959,-1665.0,0.00028784,2]
[391197823,1760415059968,-800.0,0.00028829,2]
[391197824,1760415059977,-243.0,0.00028913,2]
[391197825,1760415059987,-1000.01,0.00029,2]
[391197826,1760415059997,-487.5,0.00029012,2]
[391197827,1760415060007,-220.69672213,0.00029092,2]
[391197828,1760415060016,-700.0,0.00029141,7]
[391197829,1760415060030,-307.73677994,0.0002915,5]
[391197830,1760415060039,-500.933,0.00029163,2]
[391197831,1760415060049,-2203.936,0.00029163,2]
[391197832,1760415060060,-1000.01,0.00029174,2]
[391197833,1760415060069,-243.0,0.0002926,2]
[391197834,1760415060079,-2915.2,0.000293,2]
[391197835,1760415060089,-243.0,0.00029377,2]
[391197836,1760415060099,-314.0,0.0002952,2]
[391197837,1760415060109,-800.0,0.00029546,2]
[391197838,1760415060119,-600.0,0.00029548,2]
[391197839,1760415060128,-151.0,0.000296,30]
[391197840,1760415060138,-151.0,0.000296,30]
[391197841,1760415060147,-151.0,0.000296,30]
[391197842,1760415060157,-151.0,0.000296,30]
[391197843,1760415060167,-151.0,0.000296,30]
[391197844,1760415060176,-151.0,0.000296,30]
[391197845,1760415060186,-151.0,0.000296,30]
[391197846,1760415060196,-151.0,0.000296,30]
[391197847,1760415060207,-286.009281,0.000296,30]
[391197848,1760415060216,-151.0,0.000296,30]
[391197849,1760415060226,-151.0,0.000296,30]
[391197850,1760415060235,-158.922553,0.000296,30]
[391197851,1760415060245,-158.922553,0.000296,30]
[391197852,1760415060255,-158.922553,0.000296,30]
[391197853,1760415060264,-158.922553,0.000296,30]
[391197854,1760415060274,-151.0,0.000296,30]
[391197855,1760415060289,-151.0,0.000296,30]
[391197856,1760415060299,-151.0,0.000296,30]
[391197857,1760415060309,-151.0,0.000296,30]
[391197858,1760415060319,-446396.15535192,0.00029601,4]
[391197859,1760415060328,-151.0,0.00029601,30]
[391197860,1760415060338,-151.0,0.00029601,30]
[391197861,1760415060348,-151.0,0.00029601,30]
[391197862,1760415060357,-151.0,0.00029601,30]
[391197863,1760415060367,-151.0,0.00029601,30]
[391197864,1760415060376,-151.0,0.00029601,30]
[391197865,1760415060386,-151.0,0.00029601,30]
[391197866,1760415060395,-1538.477561,0.00029601,30]
[391197867,1760415060405,-151.0,0.00029601,30]
[391197868,1760415060414,-1538.477561,0.00029601,30]
[391197869,1760415060424,-1538.477561,0.00029601,30]
[391197870,1760415060434,-510.0,0.00029612,2]
[391197871,1760415060443,-243.0,0.0002963,2]
[391197872,1760415060452,-151.0,0.0002963,30]
[391197873,1760415060462,-425.827764,0.0002963,30]
[391197874,1760415060475,-425.827764,0.0002963,30]
[391197875,1760415060486,-151.0,0.0002963,30]
[391197876,1760415060495,-425.827764,0.0002963,30]
[391197877,1760415060506,-151.0,0.0002963,30]
[391197878,1760415060516,-425.827764,0.0002963,30]
[391197879,1760415060525,-151.0,0.0002963,30]
[391197880,1760415060541,-151.0,0.0002963,30]
[391197881,1760415060553,-151.0,0.0002963,30]
[391197882,1760415060562,-163.802476,0.0002963,30]
[391197883,1760415060572,-165.249417,0.0002963,30]
[391197884,1760415060581,-165.249417,0.0002963,30]
[391197885,1760415060590,-151.0,0.0002963,15]
[391197886,1760415060599,-165.249417,0.0002963,30]
[391197887,1760415060609,-151.0,0.0002963,15]
[391197888,1760415060618,-165.249417,0.0002963,30]
[391197889,1760415060628,-151.0,0.0002963,15]
[391197890,1760415060637,-151.0,0.0002963,30]
[391197891,1760415060646,-151.0,0.0002963,30]
[391197892,1760415060656,-151.0,0.0002963,30]
[391197893,1760415060667,-151.0,0.0002963,30]
[391197894,1760415060676,-151.0,0.0002963,30]
[391197895,1760415060686,-151.0,0.0002963,30]
[391197896,1760415060695,-151.0,0.0002963,30]
[391197897,1760415060705,-151.0,0.0002963,30]
[391197898,1760415060714,-151.0,0.0002963,30]
[391197899,1760415060724,-151.0,0.0002963,30]
[391197900,1760415060733,-151.0,0.0002963,30]
[391197901,1760415060743,-151.0,0.0002963,30]
[391197902,1760415060752,-151.0,0.0002963,30]
[391197903,1760415060761,-151.0,0.0002963,30]
[391197904,1760415060772,-151.0,0.0002963,30]
[391197905,1760415060786,-151.0,0.0002963,30]
[391197906,1760415060796,-151.0,0.0002963,30]
[391197907,1760415060805,-151.0,0.0002963,30]
[391197908,1760415060815,-151.0,0.0002963,30]
[391197909,1760415060825,-151.0,0.0002963,30]
[391197910,1760415060835,-151.0,0.0002963,30]
[391197911,1760415060844,-151.0,0.0002963,30]
[391197912,1760415060854,-151.0,0.0002963,30]
[391197913,1760415060863,-151.0,0.0002963,30]
[391197914,1760415060873,-151.0,0.0002963,30]
[391197915,1760415060883,-297.786223,0.0002963,30]
[391197916,1760415060892,-151.0,0.0002963,30]
[391197917,1760415060901,-151.0,0.0002963,30]
[391197918,1760415060911,-291.561261,0.0002963,30]
[391197919,1760415060921,-291.561261,0.0002963,30]
[391197920,1760415060930,-291.561261,0.0002963,30]
[391197921,1760415060940,-291.561261,0.0002963,30]
[391197922,1760415060950,-157.0,0.00029671,35]
[391197923,1760415060959,-243.0,0.00029747,2]
[391197924,1760415060969,-510.1286815,0.00029753,30]
[391197925,1760415060978,-600.0,0.00029856,2]
[391197926,1760415060987,-500.0,0.0002987,5]
[391197927,1760415060996,-500.0,0.0002987,5]
[391197928,1760415061005,-500.0,0.0002987,5]
[391197929,1760415061015,-4887.46,0.00029919,2]
[391197930,1760415061025,-700.0,0.00029963,7]
[391197931,1760415061036,-243.0,0.00029977,2]
[391197932,1760415061045,-188.114,0.0003,2]
[391197933,1760415061054,-1000.0,0.0003,4]
[391197934,1760415061063,-179.5635,0.0003,2]
[391197935,1760415061073,-1000.0,0.00030035,30]
[391197936,1760415061082,-244.0,0.00030035,30]
[391197937,1760415061091,-243.0,0.00030068,2]
[391197938,1760415061103,-243.0,0.00030089,2]
[391197939,1760415061113,-243.0,0.00030092,2]
[391197940,1760415061122,-19780.9051412,0.00030114,2]
[391197941,1760415061132,-314.0,0.00030122,7]
[391197942,1760415061141,-1000.0,0.00030136,30]
[391197943,1760415061151,-1000.0,0.00030136,30]
[391197944,1760415061160,-1000.0,0.00030136,30]
[391197945,1760415061169,-1000.0,0.00030136,30]
[391197946,1760415061179,-1000.0,0.00030136,30]
[391197947,1760415061188,-1000.0,0.00030136,30]
[391197948,1760415061198,-1000.0,0.00030136,30]
[391197949,1760415061208,-1000.0,0.00030136,30]
[391197950,1760415061218,-1000.0,0.00030136,30]
[391197951,1760415061228,-1000.0,0.00030136,30]
[391197952,1760415061237,-1000.0,0.00030136,30]
[391197953,1760415061247,-1000.0,0.00030136,30]
[391197954,1760415061257,-1000.0,0.00030136,30]
[391197955,1760415061266,-1000.0,0.00030136,30]
[391197956,1760415061276,-1000.0,0.00030136,30]
[391197957,1760415061291,-1000.0,0.00030136,30]
[391197958,1760415061302,-998.54327691,0.00030136,30]
[391197959,1760415061312,-400.0,0.00030136,120]
[391197960,1760415061322,-8091.76,0.00030136,8]
[391197961,1760415061332,-600.0,0.00030163,2]
[391197962,1760415061341,-154.216323,0.00030164,30]
[391197963,1760415061351,-153.0,0.00030164,30]
[391197964,1760415061360,-153.0,0.00030164,30]
[391197965,1760415061370,-34542.26,0.000302,7]
[391197966,1760415061380,-532.5,0.00030212,2]
[391197967,1760415061389,-200.0,0.00030236,120]
[391197968,1760415061399,-179.5635,0.00030268,2]
[391197969,1760415061408,-346.48168393,0.00030273,120]
[391197970,1760415061417,-800.0,0.00030298,2]
[391197971,1760415061426,-314.0,0.00030393,2]
[391197972,1760415061593,-1374223.6167,0.00030422,2]
[391197973,1760415061605,-151.0,0.00030422,30]
[391197974,1760415061615,-152.489975,0.00030422,30]
[391197975,1760415061624,-151.0,0.00030422,30]
[391197976,1760415061633,-151.0,0.00030422,30]
[391197977,1760415061643,-151.0,0.00030422,30]
[391197978,1760415061653,-151.0,0.00030422,30]
[391197979,1760415061662,-1538.477561,0.00030422,30]
[391197980,1760415061673,-153.159515,0.00030422,30]
[391197981,1760415061682,-1538.477561,0.00030422,30]
[391197982,1760415061692,-203.0,0.0003046,26]
[391197983,1760415061701,-600.0,0.00030471,2]
[391197984,1760415061711,-243.0,0.00030473,2]
[391197985,1760415061720,-243.0,0.00030474,2]
[391197986,1760415061729,-2000.0,0.000305,30]
[391197987,1760415061740,-173.79828642,0.00030575,2]
[391197988,1760415061750,-1114.0,0.000306,3]
[391197989,1760415061761,-2000.0,0.000306,3]
[391197990,1760415061771,-1000.0,0.00030619,14]
[391197991,1760415061781,-1131321.6804698,0.00030622,7]
[391197992,1760415061909,-517746.6595302,0.00030622,7]
[391197993,1760415061919,-425.827764,0.00030622,30]
[391197994,1760415061929,-425.827764,0.00030622,30]
[391197995,1760415061939,-425.827764,0.00030622,30]
[391197996,1760415061949,-151.0,0.00030622,30]
[391197997,1760415061958,-425.827764,0.00030622,30]
[391197998,1760415061967,-151.0,0.00030622,30]
[391197999,1760415061977,-151.0,0.00030622,30]
[391198000,1760415061986,-300.910702,0.00030622,30]
[391198001,1760415061996,-165.249417,0.00030622,30]
[391198002,1760415062006,-165.249417,0.00030622,30]
[391198003,1760415062015,-151.0,0.00030622,15]
[391198004,1760415062025,-165.249417,0.00030622,30]
[391198005,1760415062036,-151.0,0.00030622,15]
[391198006,1760415062046,-165.249417,0.00030622,30]
[391198007,1760415062055,-236.055098,0.00030622,15]
[391198008,1760415062065,-151.0,0.00030622,30]
[391198009,1760415062075,-151.0,0.00030622,30]
[391198010,1760415062084,-151.0,0.00030622,30]
[391198011,1760415062094,-151.0,0.00030622,30]
[391198012,1760415062103,-151.547193,0.00030622,30]
[391198013,1760415062113,-228.6863,0.00030622,30]
[391198014,1760415062123,-160.272504,0.00030622,30]
[391198015,1760415062133,-151.0,0.00030622,30]
[391198016,1760415062142,-151.0,0.00030622,30]
[391198017,1760415062152,-151.0,0.00030622,30]
[391198018,1760415062162,-151.0,0.00030622,30]
[391198019,1760415062172,-151.0,0.00030622,30]
[391198020,1760415062181,-151.0,0.00030622,30]
[391198021,1760415062190,-151.0,0.00030622,30]
[391198022,1760415062199,-151.0,0.00030622,30]
[391198023,1760415062209,-151.0,0.00030622,30]
[391198024,1760415062218,-151.0,0.00030622,30]
[391198025,1760415062228,-151.0,0.00030622,30]
[391198026,1760415062237,-177.54473752,0.00030622,2]
[391198027,1760415062247,-151.0,0.00030622,30]
[391198028,1760415062258,-158.922553,0.00030622,30]
[391198029,1760415062268,-158.922553,0.00030622,30]
[391198030,1760415062278,-158.922553,0.00030622,30]
[391198031,1760415062290,-158.922553,0.00030622,30]
[391198032,1760415062300,-151.0,0.00030622,30]
[391198033,1760415062310,-151.0,0.00030622,30]
[391198034,1760415062319,-151.0,0.00030622,30]
[391198035,1760415062329,-151.0,0.00030622,30]
[391198036,1760415062339,-151.0,0.00030622,30]
[391198037,1760415062348,-183.386484,0.00030622,30]
[391198038,1760415062357,-152.538745,0.00030622,30]
[391198039,1760415062367,-151.0,0.00030622,30]
[391198040,1760415062376,-151.0,0.00030622,30]
[391198041,1760415062385,-251.096869,0.00030622,30]
[391198042,1760415062394,-151.0,0.00030622,30]
[391198043,1760415062403,-151.0,0.00030622,30]
[391198044,1760415062413,-151.0,0.00030622,30]
[391198045,1760415062422,-209.337906,0.00030622,30]
[391198046,1760415062432,-151.0,0.00030622,30]
[391198047,1760415062442,-151.0,0.00030622,30]
[391198048,1760415062451,-153.222883,0.00030622,30]
[391198049,1760415062461,-220.69672213,0.00030622,2]
[391198050,1760415062476,-151.0,0.00030622,30]
[391198051,1760415062485,-291.561261,0.00030622,30]
[391198052,1760415062495,-291.561261,0.00030622,30]
[391198053,1760415062503,-291.561261,0.00030622,30]
[391198054,1760415062513,-291.561261,0.00030622,30]
[391198055,1760415062523,-151.0,0.00030622,30]
[391198056,1760415062536,-151.0,0.00030622,30]
[391198057,1760415062548,-151.0,0.00030622,30]
[391198058,1760415062558,-151.0,0.00030622,30]
[391198059,1760415062568,-151.0,0.00030622,30]
[391198060,1760415062578,-1538.477561,0.00030622,30]
[391198061,1760415062587,-1538.477561,0.00030622,30]
[391198062,1760415062596,-151.0,0.00030623,30]
[391198063,1760415062605,-151.0,0.00030623,30]
[391198064,1760415062615,-199.796118,0.00030623,30]
[391198065,1760415062624,-151.0,0.00030623,30]
[391198066,1760415062634,-151.0,0.00030623,30]
[391198067,1760415062643,-151.0,0.00030623,30]
[391198068,1760415062653,-151.0,0.00030623,30]
[391198069,1760415062663,-151.0,0.00030623,2]
[391198070,1760415062672,-151.878417,0.00030623,30]
[391198071,1760415062685,-151.371661,0.00030623,30]
[391198072,1760415062699,-151.0,0.00030623,30]
[391198073,1760415062708,-151.0,0.00030623,30]
[391198074,1760415062718,-151.0,0.00030623,30]
[391198075,1760415062727,-151.0,0.00030623,30]
[391198076,1760415062736,-200.044455,0.00030623,30]
[391198077,1760415062745,-151.0,0.00030623,30]
[391198078,1760415062754,-151.0,0.00030623,30]
[391198079,1760415062764,-151.0,0.00030623,30]
[391198080,1760415062774,-151.0,0.00030623,30]
[391198081,1760415062787,-151.0,0.00030623,30]
[391198082,1760415062796,-152.515324,0.00030623,30]
[391198083,1760415062805,-181.255208,0.00030623,30]
[391198084,1760415062814,-181.255208,0.00030623,30]
[391198085,1760415062823,-181.255208,0.00030623,30]
[391198086,1760415062834,-181.255208,0.00030623,30]
[391198087,1760415062854,-151.0,0.00030623,30]
[391198088,1760415062872,-151.0,0.00030623,30]
[391198089,1760415062883,-245.927379,0.00030623,30]
[391198090,1760415062893,-151.0,0.00030623,30]
[391198091,1760415062903,-151.0,0.00030623,30]
[391198092,1760415062912,-151.0,0.00030623,30]
[391198093,1760415062922,-155.02737,0.00030623,30]
[391198094,1760415062932,-151.0,0.00030623,30]
[391198095,1760415062941,-151.0,0.00030623,30]
[391198096,1760415062950,-151.0,0.00030623,30]
[391198097,1760415062960,-151.0,0.00030624,30]
[391198098,1760415062970,-151.0,0.00030624,30]
[391198099,1760415062979,-267.16175172,0.00030624,30]
[391198100,1760415062988,-151.0,0.00030624,30]
[391198101,1760415062998,-153.121087,0.00030624,30]
[391198102,1760415063007,-220.686934,0.00030624,30]
[391198103,1760415063016,-151.0,0.00030624,30]
[391198104,1760415063026,-151.0,0.00030624,30]
[391198105,1760415063040,-151.0,0.00030624,30]
[391198106,1760415063050,-151.00000047,0.00030624,30]
[391198107,1760415063060,-161.663026,0.00030624,30]
[391198108,1760415063069,-161.663026,0.00030624,30]
[391198109,1760415063079,-151.0,0.00030624,30]
[391198110,1760415063087,-161.663026,0.00030624,30]
[391198111,1760415063097,-161.663026,0.00030624,30]
[391198112,1760415063106,-152.349513,0.00030624,30]
[391198113,1760415063115,-151.0,0.00030624,30]
[391198114,1760415063125,-151.0,0.00030624,30]
[391198115,1760415063134,-151.0,0.00030624,30]
[391198116,1760415063144,-151.0,0.00030624,30]
[391198117,1760415063154,-317.0,0.00030629,2]
[391198118,1760415063163,-566.0,0.00030632,2]
[391198119,1760415063173,-1000.0,0.00030637,14]
[391198120,1760415063182,-1000.0,0.00030656,14]
[391198121,1760415063191,-204.61781555,0.00030663,2]
[391198122,1760415063201,-1000.0,0.00030674,14]
[391198123,1760415063210,-1000.0,0.00030692,14]
[391198124,1760415063220,-1500.0,0.000307,4]
[391198125,1760415063230,-248.61,0.000307,13]
[391198126,1760415063239,-1000.0,0.0003071,14]
[391198127,1760415063248,-205.56371041,0.00030719,30]
[391198128,1760415063257,-200.0,0.00030722,10]
[391198129,1760415063266,-243.36953757,0.00030722,10]
[391198130,1760415063276,-2035653.78181172,0.00030722,20]
[391198131,1760415063292,-4511.03527439,0.00030722,20]
[391198132,1760415063312,-790.09,0.00020053,2]
[391198133,1760415063321,-1538.477561,0.00030422,30]
[391198134,1760415063331,-224891.432439,0.00030722,20]
[391198135,1760415063343,-855.96675313,0.00030722,20]
[391198136,1760415063430,-790.09,0.00020053,2]
[391198137,1760415063440,-790.09,0.00020053,2]
[391198138,1760415063450,-790.09,0.00020053,2]
[391198139,1760415063459,-790.09,0.00020053,2]
[391198140,1760415063471,-790.09,0.00020053,2]
[391198141,1760415063481,-790.09,0.00020053,2]
[391198142,1760415063491,-500.0,0.00020062,2]
[391198143,1760415063500,-500.0,0.00020062,2]
[391198144,1760415063510,-331.20701056,0.00020062,2]
[391198145,1760415063520,-1538.477561,0.00029601,30]
[391198146,1760415063530,-1538.477561,0.00030422,30]
[391198147,1760415063545,-1538.477561,0.00030622,30]
[391198148,1760415063554,-1538.477561,0.00030622,30]
[391198149,1760415063564,-117011.88077429,0.00030722,20]
[391198150,1760415063804,-500.0,0.00020052,2]
[391198151,1760415063813,-16.141898,0.00020052,2]
[391198152,1760415064019,1674.04201468,0.00019962,2]
[391198153,1760415089214,1179.919696,0.00013699,2]
[391198154,1760415120798,328.46703345,0.00030722,60]
[391198155,1760415133803,316352.91069843,0.00019959,2]
[391198156,1760415148455,168.62035477,0.00019912,2]
[391198157,1760415178228,318.6062319,0.00030705,120]
[391198158,1760415182650,300.0,0.00019958,2]
[391198159,1760415193505,166.84448562,0.00019912,2]
[391198160,1760415242725,266.0,0.00019958,2]
[391198161,1760415293058,500.0,0.00019958,2]
[391198162,1760415294437,500.0,0.00019958,2]
[391198163,1760415294669,500.0,0.00019958,2]
[391198164,1760415294778,500.0,0.00019958,2]
[391198165,1760415294899,500.0,0.00019958,2]
[391198166,1760415295012,500.0,0.00019958,2]
[391198167,1760415295126,500.0,0.00019958,2]
[391198168,1760415295249,500.0,0.00019958,2]
[391198169,1760415295500,500.0,0.00019958,2]
[391198170,1760415295571,500.0,0.00019958,2]
[391198171,1760415301380,500.0,0.00019958,2]
[391198172,1760415301512,500.0,0.00019958,2]
[391198173,1760415301616,500.0,0.00019958,2]
[391198174,1760415301792,500.0,0.00019958,2]
[391198175,1760415316713,185.97914389,0.00019912,2]
[391198176,1760415342984,500.0,0.00019958,2]
[391198177,1760415343350,500.0,0.00019958,2]
[391198178,1760415343598,500.0,0.00019958,2]
[391198179,1760415343818,500.0,0.00019958,2]
[391198180,1760415344056,500.0,0.00019958,2]
[391198181,1760415344320,500.0,0.00019958,2]
[391198182,1760415344576,500.0,0.00019958,2]
[391198183,1760415344838,500.0,0.00019958,2]
[391198184,1760415345114,500.0,0.00019958,2]
[391198185,1760415350295,936.75,0.00019958,2]
[391198186,1760415350558,936.75,0.00019958,2]
[391198187,1760415350898,440.53085611,0.00019958,2]
[391198188,1760415350928,496.21914389,0.00019958,2]
[391198189,1760415351229,936.75,0.00019958,2]
[391198190,1760415351382,936.75,0.00019958,2]
[391198191,1760415351619,936.75,0.00019958,2]
[391198192,1760415351848,936.75,0.00019958,2]
[391198193,1760415352093,936.75,0.00019958,2]
[391198194,1760415352320,936.75,0.00019958,2]
[391198195,1760415352558,936.75,0.00019958,2]
[391198196,1760415352787,936.75,0.00019958,2]
[391198197,1760415353024,936.75,0.00019958,2]
[391198198,1760415353272,936.75,0.00019958,2]
[391198199,1760415353505,136.29085611,0.00019958,2]
[391198200,1760415353528,800.45914389,0.00019958,2]
[391198201,1760415353739,936.75,0.00019958,2]
[391198202,1760415353969,936.75,0.00019958,2]
[391198203,1760415354197,936.75,0.00019958,2]
[391198204,1760415354428,936.75,0.00019958,2]
[391198205,1760415354461,-160.0,0.00019959,2]
[391198206,1760415354489,-150.0,0.00019959,2]
[391198207,1760415354754,936.75,0.00019958,2]
[391198208,1760415354937,936.75,0.00019958,2]
[391198209,1760415355186,936.75,0.00019958,2]
[391198210,1760415355470,936.75,0.00019958,2]
[391198211,1760415355576,-2797.55025215,0.00019959,2]
[391198212,1760415355696,-10000.01,0.00019959,2]
[391198213,1760415355722,936.75,0.00019958,2]
[391198214,1760415355868,-9063.26,0.00019959,2]
[391198215,1760415356293,768.80085611,0.00019958,2]
[391198216,1760415356319,168.17277365,0.00019958,2]
[391198217,1760415360388,-500.0,0.00019958,2]
[391198218,1760415360416,-560.7601084,0.00019958,2]
[391198219,1760415360444,-500.0,0.00019958,2]
[391198220,1760415360528,-500.0,0.00019958,2]
[391198221,1760415360539,-5441.51615344,0.00019959,2]
[391198222,1760415360717,-10000.01,0.00019959,2]
[391198223,1760415360750,-500.0,0.00019958,2]
[391198224,1760415360759,-9500.01,0.00019959,2]
[391198225,1760415360791,-3155.27710402,0.00019959,2]
[391198226,1760415360814,-3689.45579196,0.00019959,2]
[391198227,1760415360987,500.0,0.00019958,2]
[391198228,1760415361319,500.0,0.00019958,2]
[391198229,1760415361570,500.0,0.00019958,2]
[391198230,1760415371428,540.50205466,0.00019958,2]
[391198231,1760415379061,500.0,0.00019958,2]
[391198232,1760415379342,503.61261678,0.00019958,2]
[391198233,1760415385435,500.0,0.00019958,2]
[391198234,1760415385680,203.23535504,0.00019958,2]
[391198235,1760415405955,500.0,0.00019958,2]
[391198236,1760415437265,500.0,0.00019958,2]
[391198237,1760415437291,500.0,0.00019958,2]
[391198238,1760415437592,500.0,0.00019958,2]
[391198239,1760415437833,500.0,0.00019958,2]
[391198240,1760415438076,500.0,0.00019958,2]
[391198241,1760415438304,500.0,0.00019958,2]
[391198242,1760415438537,182.81032739,0.00019958,2]
[391198243,1760415477725,10000.01,0.00019912,2]
[391198244,1760415477749,10000.01,0.00019912,2]
[391198245,1760415477772,10000.01,0.00019912,2]
[391198246,1760415477795,10000.01,0.00019912,2]
[391198247,1760415477818,10000.01,0.00019912,2]
[391198248,1760415482818,300.0,0.00019911,2]
[391198249,1760415484475,5000.0,0.00019912,2]
[391198250,1760415487458,211.43822,0.00030599,60]
[391198251,1760415487955,190.28932128,0.00019912,2]
[391198252,1760415518791,167.734732,9.504e-05,2]
[391198253,1760415518982,167.734732,0.00019009,2]
[391198254,1760415542342,300.0,0.00019911,2]
[391198255,1760415563413,500.0,0.00019911,2]
[391198256,1760415563662,500.0,0.00019911,2]
[391198257,1760415563966,500.0,0.00019911,2]
[391198258,1760415564308,500.0,0.00019911,2]
[391198259,1760415564581,500.0,0.00019911,2]
[391198260,1760415564836,500.0,0.00019911,2]
[391198261,1760415565086,500.0,0.00019911,2]
[391198262,1760415565789,374.25121472,0.00019857,2]
[391198263,1760415565811,741.77679506,0.00019857,2]
[391198264,1760415582658,500.0,0.00019911,2]
[391198265,1760415582902,500.0,0.00019911,2]
[391198266,1760415602172,300.0,0.00019911,2]
[391198267,1760415605725,151.0,0.00018,2]
[391198268,1760415624905,321.35591814,0.00019911,2]
[391198269,1760415627256,-500.0,0.00019911,2]
[391198270,1760415627744,-9055.72693293,0.00019912,2]
[391198271,1760415629291,-10000.01,0.00019912,2]
[391198272,1760415629397,-10000.01,0.00019912,2]
[391198273,1760415629565,-10000.01,0.00019912,2]
[391198274,1760415636625,5000.0,0.00019912,2]
[391198275,1760415640326,190.28932127,0.00019857,2]
[391198276,1760415644531,4809.72067873,0.00019912,2]
[391198277,1760415644554,190.27932127,0.00019912,2]
[391198278,1760415669460,151.0,0.00018,2]
[391198279,1760415682593,2515.10291,0.000198,2]
[391198282,1760415704948,2373.78296202,0.000198,2]
[391198283,1760415762021,-173.81100936,0.00019858,2]
[391198284,1760415792735,1192.479049,0.00018935,2]
[391198285,1760415822054,-189.1049393,0.00019856,2]
[391198286,1760415825495,-317.96226562,0.00019856,2]
[391198287,1760415828560,-338.77685525,0.00019856,2]
[391198288,1760415841244,-97.06032973,0.00019856,2]
[391198289,1760415842915,-29.51053337,0.00019858,2]
[391198290,1760415842937,-256.26020855,0.0001991,2]
[391198291,1760415845968,-421.87686693,0.0001991,2]
[391198292,1760415847820,-331.88217595,0.0001991,2]
[391198293,1760415850997,-54.98074857,0.0001991,2]
[391198294,1760415851019,-295.45485717,0.0001991,2]
[391198295,1760415853580,-4.54514283,0.0001991,2]
[391198296,1760415853603,-291.96451709,0.0001991,2]
[391198297,1760415855091,-27.36953127,0.0001991,2]
[391198298,1760415855111,-207.3641344,0.0001991,2]
[391198299,1760415858353,-292.6358656,0.0001991,2]
[391198300,1760415858374,-2.76641158,0.00019911,2]
[391198301,1760415859866,-152.30621386,0.00019911,2]
[391198302,1760415863110,-215.45629876,0.00019911,2]
[391198303,1760415865282,-142.83237051,0.00019911,2]
[391198304,1760415865302,-312.41126547,0.00019911,2]
[391198305,1760415869782,-187.58873453,0.00019911,2]
[391198306,1760415869803,-33.46932916,0.00019911,2]
[391198307,1760415872970,-238.38815326,0.00019911,2]
[391198308,1760415875226,-234.84900774,0.00019911,2]
[391198309,1760415875247,-73.43118527,0.00019911,2]
[391198310,1760415877769,-158.84985872,0.00019911,2]
[391198311,1760415880739,-158.19736507,0.00019911,2]
[391198312,1760415897111,-169.17159094,0.00019911,2]
[391198313,1760415897132,-52.24657548,0.00019911,2]
[391198314,1760415901304,-181.23276224,0.00019911,2]
[391198315,1760415904064,-210.93263016,0.0001991,2]
[391198316,1760415905540,-89.06736984,0.0001991,2]
[391198317,1760415905565,-70.7035647,0.0001991,2]
[391198318,1760415907976,-174.77276667,0.0001991,2]
[391198319,1760415910222,-214.72941379,0.0001991,2]
[391198320,1760415911837,-182.03773438,0.0001991,2]
[391198321,1760415913689,-223.02263188,0.0001991,2]
[391198322,1760415915642,-193.50304249,0.0001991,2]
[391198323,1760415917152,-141.23084609,0.0001991,2]